{"text_format":"3","workbook":"xlsx","n_sheets":2,"sheets":["Протокол ШЭ ВОШ по предмету","Лист2"],"not_rendered":{"defined_names":1},"read":"whole","date_system":"1900"}

{"sheet":"Протокол ШЭ ВОШ по предмету","index":0,"n_rows":59,"n_cols":15,"rows_kept":59}
["№","Фамилия","Имя","Отчество","Дата рождения","Пол","Участник с ОВЗ (да/нет)","Класс обучения","Класс участия","Балл","Максимальный балл","Статус","Призёр муниципального этапа прошлого года","ФИО учителя","Место работы учителя"]
[1,"Ахметшин","Айзат","Фархадович","2010-12-30","м","нет",4,4,23,35,"Победитель","нет","Галиуллина Гульзира Флеровна","Муниципальное бюджетное общеобразовательное учреждение \"СОШ №29\" г.Нижнекамска  Республики Татарстан"]
[2,"Васильев","Самат","Айдарович","2011-05-13","м","нет",4,4,21,35,"призер","нет","Галиуллина Гульзира Флеровна","Муниципальное бюджетное общеобразовательное учреждение \"СОШ №29\" г.Нижнекамска  Республики Татарстан"]
[3,"Гайнуллина ","Алия","Алексеевна","2011-03-03","ж","нет",4,4,15,35,"Участник","нет","Галиуллина Гульзира Флеровна","Муниципальное бюджетное общеобразовательное учреждение \"СОШ №29\" г.Нижнекамска  Республики Татарстан"]
[4,"Ишмухаметов","Алмаз","Айдарович","2011-10-22","м","нет",4,4,13,35,"Участник","нет","Галиуллина Гульзира Флеровна","Муниципальное бюджетное общеобразовательное учреждение \"СОШ №29\" г.Нижнекамска  Республики Татарстан"]
[5,"Мухаметзянова","Замира","Робертовна","2011-08-24","ж","нет",4,4,13,35,"Участник","нет","Галиуллина Гульзира Флеровна","Муниципальное бюджетное общеобразовательное учреждение \"СОШ №29\" г.Нижнекамска  Республики Татарстан"]
[6,"Муллина","Радмира","Артуровна","2011-06-16","ж","нет",4,4,8,35,"Участник","нет","Галиуллина Гульзира Флеровна","Муниципальное бюджетное общеобразовательное учреждение \"СОШ №29\" г.Нижнекамска  Республики Татарстан"]
[7,"Нуруллин","Шамиль","Маратович","2011-04-30","м","нет",4,4,6,35,"Участник","нет","Галиуллина Гульзира Флеровна","Муниципальное бюджетное общеобразовательное учреждение \"СОШ №29\" г.Нижнекамска  Республики Татарстан"]
[8,"Сыннов","Карим","Равилевич","2011-07-28","м","нет",4,4,14,35,"Участник","нет","Галиуллина Гульзира Флеровна","Муниципальное бюджетное общеобразовательное учреждение \"СОШ №29\" г.Нижнекамска  Республики Татарстан"]
[9,"Фарвазова","Лиана","Ильдаровна","2011-07-08","ж","нет",4,4,10,35,"Участник","нет","Галиуллина Гульзира Флеровна","Муниципальное бюджетное общеобразовательное учреждение \"СОШ №29\" г.Нижнекамска  Республики Татарстан"]
[10,"Хамидуллина","Залия","Ильназовна","2011-04-26","ж","нет",4,4,19,35,"Участник","нет","Галиуллина Гульзира Флеровна","Муниципальное бюджетное общеобразовательное учреждение \"СОШ №29\" г.Нижнекамска  Республики Татарстан"]
[11,"Шарапова","Раяна","Ринатовна","2011-12-22","ж","нет",4,4,14,35,"Участник","нет","Галиуллина Гульзира Флеровна","Муниципальное бюджетное общеобразовательное учреждение \"СОШ №29\" г.Нижнекамска  Республики Татарстан"]
[12,"Галиев","Булат","Камилевич","2010-07-02","м","нет",5,5,10,38,"Участник","нет","Якупова Венера Бадуртдиновна","Муниципальное бюджетное общеобразовательное учреждение \"СОШ №29\" г.Нижнекамска  Республики Татарстан"]
[13,"Гарипова","Сабина","Равилевна","2010-08-06","ж","нет",5,5,18,38,"Участник",{"$f":"$M$13","v":"нет"},"Якупова Венера Бадуртдиновна","Муниципальное бюджетное общеобразовательное учреждение \"СОШ №29\" г.Нижнекамска  Республики Татарстан"]
[14,"Гимазеева","Айгуль","Ильгизовна","2010-10-23","ж","нет",5,5,35,38,"Участник","нет","Якупова Венера Бадуртдиновна","Муниципальное бюджетное общеобразовательное учреждение \"СОШ №29\" г.Нижнекамска  Республики Татарстан"]
[15,"Миннеханова ","Азалия","Расимовна","2010-10-13","ж","нет",5,5,15,38,{"$f":"$L$13","v":"Участник"},"нет","Якупова Венера Бадуртдиновна","Муниципальное бюджетное общеобразовательное учреждение \"СОШ №29\" г.Нижнекамска  Республики Татарстан"]
[16,"Муллагазизова","Азалия","Ринатовна","2010-09-04","ж","нет",5,5,16.5,38,"Участник","нет","Якупова Венера Бадуртдиновна","Муниципальное бюджетное общеобразовательное учреждение \"СОШ №29\" г.Нижнекамска  Республики Татарстан"]
[17,"Сабиров","Алмаз","Ленарович","2010-01-26","м","нет",5,5,30,38,"Участник","нет","Якупова Венера Бадуртдиновна","Муниципальное бюджетное общеобразовательное учреждение \"СОШ №29\" г.Нижнекамска  Республики Татарстан"]
[18,"Сабиров","Ислам","Фанусович","2010-04-02","м","нет",5,5,8,38,{"$f":"$L$18","v":"Участник"},"нет","Якупова Венера Бадуртдиновна","Муниципальное бюджетное общеобразовательное учреждение \"СОШ №29\" г.Нижнекамска  Республики Татарстан"]
[19,"Сулейманова","Лейсан","Ленаровна","2010-07-03","ж","нет",5,5,20,38,"Участник","нет","Якупова Венера Бадуртдиновна","Муниципальное бюджетное общеобразовательное учреждение \"СОШ №29\" г.Нижнекамска  Республики Татарстан"]
[20,"Усманова","Алсу","Алмазовна","2010-03-08","м","нет",5,5,36.5,38,"Победитель","нет","Якупова Венера Бадуртдиновна","Муниципальное бюджетное общеобразовательное учреждение \"СОШ №29\" г.Нижнекамска  Республики Татарстан"]
[21,"Шамсудинова","Дилия","Анваровна","2009-11-26","ж","нет",5,5,29,38,"Участник","нет","Якупова Венера Бадуртдиновна","Муниципальное бюджетное общеобразовательное учреждение \"СОШ №29\" г.Нижнекамска  Республики Татарстан"]
[22,"Гилязева","Нурзиля","Азатовна","2009-03-06","ж","нет",6,6,16,42,"Участник","нет","Габдуллина Раушания Салимовна","Муниципальное бюджетное общеобразовательное учреждение \"СОШ №29\" г.Нижнекамска  Республики Татарстан"]
[23,"Даутова","Диана","Ниязовна","2009-07-01","ж","нет",6,6,13,42,"Участник","нет","Габдуллина Раушания Салимовна","Муниципальное бюджетное общеобразовательное учреждение \"СОШ №29\" г.Нижнекамска  Республики Татарстан"]
[24,"Замилова","Алия","Айзатовна","2009-04-16","ж","нет",6,6,37,42,"Победитель","нет","Габдуллина Раушания Салимовна","Муниципальное бюджетное общеобразовательное учреждение \"СОШ №29\" г.Нижнекамска  Республики Татарстан"]
[25,"Зиангиров","Ильнур","Ришатович","2009-01-28","м","нет",6,6,13.5,42,"Участник","нет","Габдуллина Раушания Салимовна","Муниципальное бюджетное общеобразовательное учреждение \"СОШ №29\" г.Нижнекамска  Республики Татарстан"]
[26,"Зиганшин","Риназ","Рамзилевич","2009-05-30","м","нет",6,6,14,42,"Участник","нет","Габдуллина Раушания Салимовна","Муниципальное бюджетное общеобразовательное учреждение \"СОШ №29\" г.Нижнекамска  Республики Татарстан"]
[27,"Парфенова","Вероника","Витальевна","2009-09-24","ж","нет",6,6,23,42,"Участник","нет","Габдуллина Раушания Салимовна","Муниципальное бюджетное общеобразовательное учреждение \"СОШ №29\" г.Нижнекамска  Республики Татарстан"]
[28,"Салимова","Ильвина","Ильнаровна","2009-06-21","ж","нет",6,6,29,42,"Участник","нет","Габдуллина Раушания Салимовна","Муниципальное бюджетное общеобразовательное учреждение \"СОШ №29\" г.Нижнекамска  Республики Татарстан"]
[29,"Шафигуллина","Раиля","Равилевна","2009-10-28","ж","нет",6,6,15,42,"Участник","нет","Габдуллина Раушания Салимовна","Муниципальное бюджетное общеобразовательное учреждение \"СОШ №29\" г.Нижнекамска  Республики Татарстан"]
[30,"Ярмухаметова","Амира","Ханифовна","2009-06-19","ж","нет",6,6,6,42,"Участник","нет","Габдуллина Раушания Салимовна","Муниципальное бюджетное общеобразовательное учреждение \"СОШ №29\" г.Нижнекамска  Республики Татарстан"]
[31,"Ямашев","Дмитрий","Анатольевич","2009-09-11","м","нет",6,6,14,42,"Участник","нет","Габдуллина Раушания Салимовна","Муниципальное бюджетное общеобразовательное учреждение \"СОШ №29\" г.Нижнекамска  Республики Татарстан"]
[32,"Абдуллина ","Лейла","Инсафовна","2008-02-03","ж","нет",7,7,40,46,"Победитель","нет","Габдуллина Раушания Салимовна","Муниципальное бюджетное общеобразовательное учреждение \"СОШ №29\" г.Нижнекамска  Республики Татарстан"]
[33,"Ахметшина","Зарина","Альбертовна","2008-03-19","ж","нет",7,7,30,46,"Участник","нет","Габдуллина Раушания Салимовна","Муниципальное бюджетное общеобразовательное учреждение \"СОШ №29\" г.Нижнекамска  Республики Татарстан"]
[34,"Валеев","Салават","Ильдарович","2007-11-27","м","нет",7,7,13.5,46,"Участник","нет","Габдуллина Раушания Салимовна","Муниципальное бюджетное общеобразовательное учреждение \"СОШ №29\" г.Нижнекамска  Республики Татарстан"]
[35,"Гимадиев","Камиль","Дамирович","2007-12-23","м","нет",7,7,22,46,"Участник","нет","Габдуллина Раушания Салимовна","Муниципальное бюджетное общеобразовательное учреждение \"СОШ №29\" г.Нижнекамска  Республики Татарстан"]
[36,"Кашапов","Шамиль","Ильсурович","2008-06-17","м","нет",7,7,17,46,"Участник","нет","Габдуллина Раушания Салимовна","Муниципальное бюджетное общеобразовательное учреждение \"СОШ №29\" г.Нижнекамска  Республики Татарстан"]
[37,"Латипова ","Зиля","Фанисовна","2008-05-06","ж","нет",7,7,37,46,"Участник",{"$f":"$M$37","v":"нет"},"Габдуллина Раушания Салимовна","Муниципальное бюджетное общеобразовательное учреждение \"СОШ №29\" г.Нижнекамска  Республики Татарстан"]
[38,"Сабирова","Залина","Ленаровна","2008-08-09","ж","нет",7,7,19,46,{"$f":"$L$37","v":"Участник"},"нет","Габдуллина Раушания Салимовна","Муниципальное бюджетное общеобразовательное учреждение \"СОШ №29\" г.Нижнекамска  Республики Татарстан"]
[39,"Сафина","Лейсан","Айратовна","2008-07-31","ж","нет",7,7,16,46,"Участник","нет","Габдуллина Раушания Салимовна","Муниципальное бюджетное общеобразовательное учреждение \"СОШ №29\" г.Нижнекамска  Республики Татарстан"]
[40,"Асхадуллин","Ранис","Радикович","2007-03-27","м","нет",8,8,27,48,"Участник","нет","Габдуллина Раушания Салимовна","Муниципальное бюджетное общеобразовательное учреждение \"СОШ №29\" г.Нижнекамска  Республики Татарстан"]
[41,"Аюпова","Айсылу","Миназаловна","2007-04-04","ж","нет",8,8,30,48,"Участник","нет","Габдуллина Раушания Салимовна","Муниципальное бюджетное общеобразовательное учреждение \"СОШ №29\" г.Нижнекамска  Республики Татарстан"]
[42,"Габдуллина","Адиля","Маратовна","2007-06-05","ж","нет",8,8,17.5,48,"Участник","нет","Габдуллина Раушания Салимовна","Муниципальное бюджетное общеобразовательное учреждение \"СОШ №29\" г.Нижнекамска  Республики Татарстан"]
[43,"Давлетбаев","Ренат","Азатович","2007-05-15","м","нет",8,8,12,48,"Участник","нет","Габдуллина Раушания Салимовна","Муниципальное бюджетное общеобразовательное учреждение \"СОШ №29\" г.Нижнекамска  Республики Татарстан"]
[44,"Ибатуллин","Салават","Айратович","2007-02-09","м","нет",8,8,2,48,"Участник","нет","Габдуллина Раушания Салимовна","Муниципальное бюджетное общеобразовательное учреждение \"СОШ №29\" г.Нижнекамска  Республики Татарстан"]
[45,"Ишмухаметова","Аделина","Алмазовна","2007-02-23","ж","нет",8,8,26,48,"Участник","нет","Габдуллина Раушания Салимовна","Муниципальное бюджетное общеобразовательное учреждение \"СОШ №29\" г.Нижнекамска  Республики Татарстан"]
[46,"Нуруллин","Камиль","Айратович","2007-07-13","м","нет",8,8,8,48,"Участник","нет","Габдуллина Раушания Салимовна","Муниципальное бюджетное общеобразовательное учреждение \"СОШ №29\" г.Нижнекамска  Республики Татарстан"]
[47,"Садыков","Разиль","Разихович","2007-04-24","м","нет",8,8,21,48,"Участник","нет","Габдуллина Раушания Салимовна","Муниципальное бюджетное общеобразовательное учреждение \"СОШ №29\" г.Нижнекамска  Республики Татарстан"]
[48,"Шарипова","Луиза","Рустамовна","2007-09-20","ж","нет",8,8,14,48,"Участник","нет","Габдуллина Раушания Салимовна","Муниципальное бюджетное общеобразовательное учреждение \"СОШ №29\" г.Нижнекамска  Республики Татарстан"]
[49,"Бахтиева","Ландыш","Наилевна","2006-10-18","ж","нет",9,9,28,52,"Участник","нет","Якупова Венера Бадуртдиновна","Муниципальное бюджетное общеобразовательное учреждение \"СОШ №29\" г.Нижнекамска  Республики Татарстан"]
[50,"Буранкова","Айзиля","Павловна","2006-08-03","ж","нет",9,9,34,52,"Участник","нет","Якупова Венера Бадуртдиновна","Муниципальное бюджетное общеобразовательное учреждение \"СОШ №29\" г.Нижнекамска  Республики Татарстан"]
[51,"Валеева","Разиля","Айратовна","2006-09-13","ж","нет",9,9,35,52,"Участник","нет","Якупова Венера Бадуртдиновна","Муниципальное бюджетное общеобразовательное учреждение \"СОШ №29\" г.Нижнекамска  Республики Татарстан"]
[52,"Гайнуллина ","Камиля","Айратовна","2006-09-25","ж","нет",9,9,50,52,"Победитель","Да","Якупова Венера Бадуртдиновна","Муниципальное бюджетное общеобразовательное учреждение \"СОШ №29\" г.Нижнекамска  Республики Татарстан"]
[53,"Мансурова","Диляра","Асгатовна","2006-08-18","ж","нет",9,9,46,52,"Участник","нет","Якупова Венера Бадуртдиновна","Муниципальное бюджетное общеобразовательное учреждение \"СОШ №29\" г.Нижнекамска  Республики Татарстан"]
[54,"Нуриев","Ильяс","Илшатович","2006-07-17","м","нет",9,9,20,52,"Участник","нет","Якупова Венера Бадуртдиновна","Муниципальное бюджетное общеобразовательное учреждение \"СОШ №29\" г.Нижнекамска  Республики Татарстан"]
[55,"Хузяхметова","Айзира","Рафиловна","2006-02-07","ж","нет",9,9,39,52,"Участник","нет","Якупова Венера Бадуртдиновна","Муниципальное бюджетное общеобразовательное учреждение \"СОШ №29\" г.Нижнекамска  Республики Татарстан"]
[56,"Хафизов","Рамис","Раилевич","2006-03-17","м","нет",9,9,22,52,"Участник","нет","Якупова Венера Бадуртдиновна","Муниципальное бюджетное общеобразовательное учреждение \"СОШ №29\" г.Нижнекамска  Республики Татарстан"]
[57,"Зиатдинов","Азат","Ильнурович","2006-09-15","м",{"$f":"$G$56","v":"нет"},9,9,13,52,"Участник","нет","Якупова Венера Бадуртдиновна","Муниципальное бюджетное общеобразовательное учреждение \"СОШ №29\" г.Нижнекамска  Республики Татарстан"]
[58,"Файзуллин","Азат","Зуфарович","2006-05-15","м","нет",9,9,15,52,"Участник",{"$f":"$M$51","v":"нет"},"Якупова Венера Бадуртдиновна","Муниципальное бюджетное общеобразовательное учреждение \"СОШ №29\" г.Нижнекамска  Республики Татарстан"]

{"sheet":"Лист2","index":1,"n_rows":3,"n_cols":7,"rows_kept":3}
["м",null,"Победитель",null,"да",null,"Победитель"]
["ж",null,"Призер",null,"нет",null,"Призер"]
[null,null,"Участник"]